fUSD/lending_fUSD_20250611
["ID","MTS","AMOUNT","RATE_DAILY","PERIOD"]
[365380317,1749634242062,-972.4212073,0.00019996,2]
[365380319,1749634242072,-556.0,0.00019999,2]
[365380320,1749634242082,-29.43199784,0.00019999,2]
[365380325,1749634242109,-270.56800216,0.00019999,2]
[365380327,1749634242118,-137.50199784,0.00019999,2]
[365380329,1749634242129,-197.46589735,0.00019999,2]
[365380331,1749634242138,-149.72710225,0.00019999,2]
[365380333,1749634242149,-350.27289775,0.00019999,2]
[365380335,1749634242158,-150.0,0.00019999,2]
[365380337,1749634242171,-3855.78589031,0.0002,3]
[365380339,1749634242182,-2435.17796295,0.0002,3]
[365380452,1749634243369,-500.04315255,0.00018164,2]
[365380453,1749634243380,-3.13684745,0.00018164,2]
[365380454,1749634243390,-292.81601862,0.00018164,2]
[365380455,1749634243402,-372.17398138,0.00018164,2]
[365380456,1749634243412,-3140.99646462,0.0002,3]
[365380457,1749634243423,-931.93212403,0.0002,3]
[365380458,1749634243435,-11990.98484504,0.0002,3]
[365380459,1749634243592,-152891.66020007,0.0002,3]
[365380460,1749634243601,-714.73530466,0.0002,3]
[365380461,1749634243611,-677578.35957897,0.0002,2]
[365380462,1749634243623,-1252082.76717915,0.0002,2]
[365380463,1749634243650,-928.60134739,0.0002,2]
[365380465,1749634246146,-502.3,0.00017586,2]
[365380466,1749634246156,-24944.77002397,0.0002,2]
[365380467,1749634246170,-11971.72246016,0.0002,2]
[365380468,1749634246203,-452.67832474,0.0002,2]
[365380469,1749634246371,-268.987887,0.0002,2]
[365380470,1749634246383,-318.8803487,0.0002,2]
[365380471,1749634246447,-3360.68434875,0.0002,2]
[365380472,1749634246540,-1961.17284861,0.0002,2]
[365380482,1749634602423,1333.0,0.0002441,120]
[365380483,1749634676634,9999.999999,0.00012,2]
[365380484,1749634957870,346.29,0.000246,120]
[365380485,1749634962961,346.29,0.000246,120]
[365380486,1749634969206,346.29,0.000246,120]
[365380487,1749634976730,346.0,0.000246,120]
[365380488,1749634982447,346.29,0.000246,120]
[365380489,1749634990657,346.29,0.000246,120]
[365380490,1749634996727,346.29,0.000246,120]
[365380492,1749635220462,155.49,0.00013699,2]
[365380493,1749635230114,-500.0,0.00016164,2]
[365380494,1749635230138,-500.0,0.00016164,2]
[365380495,1749635230164,-200.0,0.00016174,2]
[365380496,1749635230186,-852.58,0.00016538,2]
[365380497,1749635230209,-151.0,0.00016584,2]
[365380498,1749635230230,-151.0,0.00016597,2]
[365380499,1749635230251,-171.36581424,0.00017084,2]
[365380500,1749635230274,-303.4,0.00017184,2]
[365380501,1749635230296,-1530.79,0.00017316,2]
[365380502,1749635230317,-300.0,0.00017485,2]
[365380503,1749635230339,-500.62,0.00017486,2]
[365380504,1749635230360,-305.57,0.00017486,2]
[365380505,1749635230381,-506.31,0.00017486,2]
[365380506,1749635230406,-116.79478713,0.00017486,2]
[365380508,1749635242146,-378.92521287,0.00017486,2]
[365380509,1749635242167,-508.38,0.00017486,2]
[365380510,1749635242187,-300.72,0.00017486,2]
[365380511,1749635242207,-305.55575099,0.00017486,2]
[365380512,1749635248087,-201.41424901,0.00017486,2]
[365380513,1749635248110,-397.28325034,0.00017486,2]
[365380514,1749635431445,-430.78130045,0.00016164,2]
[365380515,1749635431455,-301.62,0.00017385,2]
[365380516,1749635431464,-267.59869955,0.00017385,2]
[365380522,1749635437426,-203.40130045,0.00017385,2]
[365380523,1749635437435,-500.75,0.00017385,2]
[365380524,1749635437444,-58.53136547,0.00017385,2]
[365380525,1749635437457,-441.69863453,0.00017385,2]
[365380526,1749635437468,-386.06730525,0.00017385,2]
[365380527,1749635437480,-112.45269475,0.00017385,2]
[365380528,1749635437492,-194.36665039,0.00017385,2]
[365380529,1749635437517,-109.68334961,0.00017385,2]
[365380530,1749635437537,-502.06,0.00017386,2]
[365380531,1749635437555,-376.17983279,0.00017386,2]
[365380532,1749635437618,-122.32016721,0.00017386,2]
[365380533,1749635437629,-703.48173861,0.00017386,2]
[365380534,1749635437639,-500.89,0.00017386,2]
[365380535,1749635437649,-306.0,0.00017386,2]
[365380536,1749635437658,-498.17,0.00017386,2]
[365380537,1749635437668,-505.59,0.00017386,2]
[365380538,1749635437677,-508.57,0.00017386,2]
[365380539,1749635437687,-303.26,0.00017386,2]
[365380540,1749635437696,-501.21,0.00017386,2]
[365380541,1749635437705,-400.15027842,0.00017386,2]
[365380717,1749635439485,-90.96972158,0.00017386,2]
[365380719,1749635439495,-303.18,0.00017386,2]
[365380721,1749635439504,-202.61696953,0.00017386,2]
[365380723,1749635439515,-296.28303047,0.00017386,2]
[365380725,1749635439524,-494.63,0.00017386,2]
[365380727,1749635439537,-496.94,0.00017386,2]
[365380729,1749635439547,-302.21,0.00017386,2]
[365380731,1749635439556,-490.32,0.00017386,2]
[365380733,1749635439568,-504.98,0.00017386,2]
[365380735,1749635439588,-159.7814022,0.00017486,2]
[365380737,1749635439609,-111.81674966,0.00017486,2]
[365380738,1749635439620,-499.59,0.00017486,2]
[365380739,1749635439630,-301.8,0.00017486,2]
[365380740,1749635439640,-507.55,0.00017486,2]
[365380741,1749635439650,-303.22,0.00017486,2]
[365380742,1749635439660,-496.71,0.00017486,2]
[365380743,1749635439669,-499.64,0.00017486,2]
[365380744,1749635439678,-301.13,0.00017486,2]
[365380745,1749635439687,-490.91,0.00017486,2]
[365380746,1749635439696,-503.82,0.00017486,2]
[365380747,1749635439705,-505.27,0.00017486,2]
[365380748,1749635439715,-305.4,0.00017486,2]
[365380750,1749635439724,-496.21,0.00017486,2]
[365380752,1749635439734,-504.44,0.00017486,2]
[365380754,1749635439743,-301.58,0.00017486,2]
[365380756,1749635439752,-508.14,0.00017486,2]
[365380758,1749635439761,-497.71,0.00017486,2]
[365380760,1749635439771,-507.29,0.00017486,2]
[365380762,1749635439780,-303.52,0.00017486,2]
[365380764,1749635439789,-495.96,0.00017486,2]
[365380766,1749635439798,-152.56,0.00017486,2]
[365380768,1749635439807,-497.6,0.00017486,2]
[365380770,1749635439816,-506.4,0.00017486,2]
[365380772,1749635439826,-305.58,0.00017486,2]
[365380774,1749635439835,-496.52,0.00017486,2]
[365380776,1749635439844,-494.52,0.00017486,2]
[365380778,1749635439853,-495.98,0.00017486,2]
[365380780,1749635439863,-300.28,0.00017486,2]
[365380782,1749635439872,-507.62,0.00017486,2]
[365380784,1749635439882,-500.0,0.00017534,2]
[365380786,1749635439890,-534.60513645,0.00017585,2]
[365380788,1749635439900,-224.10829763,0.00017585,2]
[365380790,1749635439909,-497.41,0.00017586,2]
[365380792,1749635439918,-500.88,0.00017586,2]
[365380794,1749635439928,-498.75,0.00017586,2]
[365380796,1749635439937,-508.38,0.00017586,2]
[365380798,1749635439946,-301.57,0.00017586,2]
[365380800,1749635439955,-490.86,0.00017586,2]
[365380802,1749635439964,-494.17,0.00017586,2]
[365380804,1749635439973,-302.21,0.00017586,2]
[365380806,1749635439982,-635.0,0.00017586,2]
[365380808,1749635439991,-600.0,0.0001778,4]
[365380810,1749635440001,-300.0,0.0001778,2]
[365380812,1749635440010,-332.0,0.00017845,2]
[365380814,1749635440019,-249.65480282,0.000179,2]
[365380816,1749635440028,-281.0,0.00017913,2]
[365380818,1749635440038,-151.72,0.00018,2]
[365380820,1749635440047,-1792.44,0.00018082,2]
[365380822,1749635440056,-9208.43,0.00018157,2]
[365380824,1749635440065,-153.75,0.00018179,2]
[365380826,1749635440075,-250.0,0.00018187,2]
[365380828,1749635440085,-1000.0,0.00018212,2]
[365380830,1749635440095,-150.0,0.00018221,2]
[365380832,1749635440104,-7005.66,0.00018242,2]
[365380834,1749635440114,-204.0,0.0001828,2]
[365380836,1749635440123,-4218.27,0.00018327,2]
[365380838,1749635440134,-4034.4,0.00018345,2]
[365380840,1749635440144,-252.13,0.00018358,2]
[365380842,1749635440154,-768.0,0.0001845,2]
[365380843,1749635440163,-150.0,0.00018498,7]
[365380845,1749635440172,-5691.13,0.00018544,2]
[365380847,1749635440182,-2400.35,0.00018639,2]
[365380849,1749635440191,-666.0,0.00018684,2]
[365380851,1749635440200,-852.58,0.00018802,2]
[365380853,1749635440210,-249.6548028,0.000189,2]
[365380855,1749635440219,-267.18,0.00018981,2]
[365380857,1749635440228,-238.29,0.00018981,2]
[365380859,1749635440237,-207.4,0.00018999,2]
[365380861,1749635440247,-151.0,0.00018999,2]
[365380863,1749635440256,-200.0,0.00018999,2]
[365380865,1749635440265,-10192.23841648,0.00019,2]
[365380867,1749635440274,-250.0,0.00019,2]
[365380869,1749635440284,-152.0,0.00019176,3]
[365380871,1749635440294,-165.4,0.00019514,2]
[365380873,1749635440303,-197.40331613,0.00019592,2]
[365380875,1749635440311,-793.882026,0.00019599,2]
[365380877,1749635440319,-9268.18153491,0.000197,2]
[365380879,1749635440330,-10266.3111,0.0001971,2]
[365380881,1749635440339,-500.0,0.00019726,2]
[365380883,1749635440348,-204.0,0.0001977,4]
[365380885,1749635440357,-293.63242041,0.000198,2]
[365380887,1749635440366,-500.0,0.00019839,2]
[365380889,1749635440375,-500.0,0.0001984,2]
[365380890,1749635440385,-492.17087952,0.00019873,2]
[365380892,1749635440394,-492.17087943,0.00019876,2]
[365380894,1749635440403,-444.126,0.00019876,2]
[365380896,1749635440413,-492.17087943,0.00019879,2]
[365380898,1749635440423,-492.17087943,0.00019882,2]
[365380900,1749635440432,-492.17087943,0.00019885,2]
[365380902,1749635440442,-558.81008304,0.00019886,2]
[365380904,1749635440451,-492.17087943,0.00019888,2]
[365380906,1749635440461,-492.17087943,0.00019891,2]
[365380908,1749635440471,-492.17087943,0.00019894,2]
[365380910,1749635440481,-492.17087943,0.00019897,2]
[365380912,1749635440490,-228.01970326,0.00019899,2]
[365380915,1749635440501,-226.15234082,0.00019899,2]
[365380917,1749635440510,-210.11006956,0.00019899,2]
[365380919,1749635440519,-353.77461002,0.00019899,2]
[365380921,1749635440530,-413.34,0.000199,2]
[365380923,1749635440541,-18743.36,0.000199,2]
[365380925,1749635440550,-160.83468592,0.000199,2]
[365380927,1749635440559,-28248.10373835,0.000199,2]
[365380928,1749635440569,-492.17087943,0.000199,2]
[365380930,1749635440579,-328.868,0.000199,2]
[365380932,1749635440588,-558.81008303,0.000199,2]
[365380934,1749635440598,-249.6548028,0.000199,2]
[365380936,1749635440608,-13406.9574026,0.000199,2]
[365380938,1749635440618,-8146.08009985,0.000199,2]
[365380941,1749635440628,-343.07744514,0.000199,2]
[365380942,1749635440637,-209.66174142,0.000199,2]
[365380944,1749635440647,-1275.70845675,0.000199,2]
[365380946,1749635440656,-503.42,0.000199,2]
[365380948,1749635440665,-503.58,0.000199,2]
[365380950,1749635440674,-1251.91700775,0.000199,2]
[365380953,1749635440685,-1251.91700776,0.000199,2]
[365380955,1749635440694,-307.0,0.00019973,2]
[365380957,1749635440704,-500.05755497,0.00019973,2]
[365380959,1749635440713,-500.0,0.00019973,2]
[365380961,1749635440722,-500.0,0.00019973,2]
[365380963,1749635440731,-502.27276169,0.00019973,2]
[365380965,1749635440741,-500.0,0.00019973,2]
[365380967,1749635440750,-500.0,0.00019973,2]
[365380969,1749635440759,-4148.45,0.00019976,2]
[365380971,1749635440768,-485.97193233,0.0001998,2]
[365380973,1749635440777,-151.5328932,0.00019986,2]
[365380975,1749635440787,-151.5328932,0.00019986,2]
[365380977,1749635440796,-151.5328932,0.00019986,2]
[365380978,1749635440804,-151.5328932,0.00019986,2]
[365380980,1749635440814,-151.5328932,0.00019986,2]
[365380982,1749635440823,-348.936493,0.00019986,2]
[365380984,1749635440832,-348.936493,0.00019986,2]
[365380986,1749635440841,-348.936493,0.00019986,2]
[365380988,1749635440850,-348.936493,0.00019986,2]
[365380990,1749635440859,-348.936493,0.00019986,2]
[365380992,1749635440868,-3525.153556,0.00019986,2]
[365380994,1749635440877,-2832.1534069,0.00019986,2]
[365380996,1749635440886,-2139.1532578,0.00019986,2]
[365380998,1749635440895,-1446.1531087,0.00019986,2]
[365381000,1749635440904,-753.1529597,0.00019986,2]
[365381002,1749635440913,-8949.2598853,0.00019986,2]
[365381004,1749635440922,-7189.9497344,0.00019986,2]
[365381006,1749635440932,-5430.6395835,0.00019986,2]
[365381008,1749635440941,-3671.3294326,0.00019986,2]
[365381010,1749635440951,-1912.0192816,0.00019986,2]
[365381012,1749635440960,-1823.3699336,0.00019986,2]
[365381014,1749635440969,-1464.9187014,0.00019986,2]
[365381016,1749635440978,-1106.4674692,0.00019986,2]
[365381018,1749635440987,-748.016237,0.00019986,2]
[365381020,1749635440997,-389.5650048,0.00019986,2]
[365381022,1749635441006,-162.0702012,0.00019986,2]
[365381024,1749635441015,-162.0702012,0.00019986,2]
[365381026,1749635441025,-162.0702012,0.00019986,2]
[365381028,1749635441034,-162.0702012,0.00019986,2]
[365381030,1749635441043,-162.0702012,0.00019986,2]
[365381032,1749635441052,-6374.06,0.00019989,2]
[365381034,1749635441061,-2446.366,0.00019989,2]
[365381036,1749635441070,-155.0,0.00019989,2]
[365381038,1749635441081,-158.54,0.0001999,2]
[365381040,1749635441091,-4148.45,0.0001999,2]
[365381042,1749635441100,-151.5328932,0.00019996,2]
[365381044,1749635441109,-348.936493,0.00019996,2]
[365381046,1749635441119,-4218.153705,0.00019996,2]
[365381048,1749635441128,-10708.5700363,0.00019996,2]
[365381050,1749635441137,-2181.8211658,0.00019996,2]
[365381052,1749635441146,-162.0702012,0.00019996,2]
[365381054,1749635441155,-341.90435277,0.00019996,2]
[365381056,1749635441164,-2660.77335254,0.00019996,2]
[365381062,1749635441203,-551.31186297,0.00019996,2]
[365381064,1749635441213,-155.62,0.00019999,2]
[365381066,1749635441222,-150.0,0.00019999,2]
[365381068,1749635441231,-519.18023906,0.00019999,2]
[365381196,1749635442474,-1111.21146799,0.00019999,2]
[365381249,1749635442954,-302.53516309,0.00019999,2]
[365381251,1749635442965,-80.22087199,0.00019999,2]
[365381253,1749635442973,-500.0,0.00019999,2]
[365381255,1749635442983,-117.24396492,0.0002,2]
[365381257,1749635442993,-305.458228,0.0002,2]
[365381492,1749635445295,-160.99851794,0.00019896,2]
[365381495,1749635445306,-131.29780708,0.0002,2]
[365381497,1749635445315,-9832.50193482,0.0002,3]
[365381512,1749635445452,-56230.96704208,0.0002,3]
[365381514,1749635445464,-1941.50345153,0.0002,3]
[365381519,1749635445505,-19618.29631508,0.0002,3]
[365381521,1749635445514,-357.36765233,0.0002,3]
[365381523,1749635445523,-85024.33603259,0.0002,2]
[365381526,1749635445540,-40602.21995986,0.0002,2]
[365381528,1749635445552,-337318.37009084,0.0002,2]
[365381770,1749636175874,155.49,0.00013699,2]
[365381771,1749636239031,155.06,0.00013954,2]
[365381772,1749636246447,200.30626315,0.0001594,2]
[365381773,1749636364587,40119.5150477,0.0001602,2]
[365381774,1749636433130,-412.60697107,0.00016093,2]
[365381775,1749636443121,-236.29524294,0.00016064,2]
[365381776,1749636443143,-497.91302893,0.00016093,2]
[365381777,1749636443167,-600.0,0.00016111,4]
[365381778,1749636443187,-250.0,0.00016129,2]
[365381779,1749636443208,-500.0,0.00016164,2]
[365381780,1749636443231,-500.0,0.00016164,2]
[365381781,1749636443253,-600.0,0.00016207,4]
[365381782,1749636443275,-300.0,0.00016374,2]
[365381783,1749636443296,-151.0,0.00016525,2]
[365381784,1749636443317,-150.0,0.00016584,2]
[365381785,1749636443337,-152.481,0.00016731,2]
[365381786,1749636443358,-300.0,0.00016831,2]
[365381787,1749636443379,-236.29524294,0.00016988,2]
[365381788,1749636443401,-367.66373336,0.00017195,2]
[365381789,1749636445087,-137.01626664,0.00017195,2]
[365381790,1749636445110,-495.65,0.00017195,2]
[365381791,1749636445131,-483.80895634,0.000173,2]
[365381792,1749636551709,1905.6,0.00024658,120]
[365381793,1749636561311,-512.14988324,0.00016164,2]
[365381794,1749636561333,-410.7052123,0.00016164,2]
[365381804,1749636631548,-89.2947877,0.00016164,2]
[365381806,1749636631558,-500.0,0.00016164,2]
[365381808,1749636631567,-97.05992664,0.00016448,2]
[365381814,1749636631703,-202.94007336,0.00016448,2]
[365381815,1749636631713,-291.75670655,0.00016658,2]
[365381816,1749636631725,-11.88329345,0.00016658,2]
[365381817,1749636631734,-600.0,0.00016732,4]
[365381818,1749636631743,-1129.8094674,0.000169,2]
[365381819,1749636631766,-252.57382848,0.000169,2]
[365381827,1749636631938,-240.63502451,0.000169,2]
[365381830,1749636631948,-300.0,0.00016999,2]
[365381833,1749636631959,-1200.0,0.00016999,2]
[365381835,1749636631968,-1623.01832027,0.00017003,2]
[365381837,1749636631978,-600.0,0.00017093,4]
[365381839,1749636631987,-1623.01832027,0.00017107,2]
[365381841,1749636631996,-550.0,0.00017198,2]
[365381842,1749636632007,-300.0,0.00017198,2]
[365381844,1749636632016,-1623.01832027,0.0001721,2]
[365381846,1749636632025,-204.0,0.0001726,2]
[365381848,1749636632035,-496.74,0.000173,2]
[365381864,1749636632225,-305.1,0.000173,2]
[365381865,1749636632250,-509.09,0.000173,2]
[365381866,1749636632259,-492.29,0.000173,2]
[365381867,1749636632268,-304.03,0.000173,2]
[365381868,1749636632278,-500.74,0.000173,2]
[365381869,1749636632287,-490.15,0.000173,2]
[365381870,1749636632299,-1623.01832027,0.00017314,2]
[365381871,1749636632308,-1623.01832027,0.00017417,2]
[365381872,1749636632317,-1623.01832027,0.00017521,2]
[365381873,1749636632328,-300.0,0.00017532,2]
[365381874,1749636632338,-500.0,0.00017534,2]
[365381875,1749636632347,-267.18,0.00017561,2]
[365381876,1749636632356,-164.5,0.00017586,2]
[365381877,1749636632367,-1623.01832027,0.00017624,2]
[365381878,1749636632376,-600.0,0.00017703,4]
[365381879,1749636632386,-250.0,0.00017703,2]
[365381880,1749636632395,-1623.01832027,0.00017728,2]
[365381881,1749636632404,-150.0,0.00017746,7]
[365381882,1749636632413,-300.0,0.0001778,2]
[365381883,1749636632423,-600.0,0.0001778,4]
[365381884,1749636632432,-250.0,0.0001778,2]
[365381885,1749636632441,-300.0,0.0001778,2]
[365381886,1749636632450,-600.0,0.0001778,4]
[365381887,1749636632459,-250.0,0.0001778,2]
[365381888,1749636632469,-1623.01832027,0.00017831,2]
[365381889,1749636632483,-236.29524294,0.00017911,2]
[365381890,1749636632493,-1623.01832027,0.00017934,2]
[365381891,1749636632502,-332.0,0.00017946,2]
[365381892,1749636632512,-15381.33,0.00018011,2]
[365381893,1749636632522,-1000.0,0.00018011,2]
[365381894,1749636632531,-250.0,0.00018011,2]
[365381895,1749636632541,-1623.01832027,0.00018038,2]
[365381896,1749636632551,-281.0,0.00018084,2]
[365381897,1749636632561,-165.33,0.00018088,2]
[365381898,1749636632571,-1623.01832027,0.00018141,2]
[365381899,1749636632583,-153.8,0.00018242,2]
[365381900,1749636632593,-300.02,0.00018242,2]
[365381901,1749636632602,-492.56,0.00018242,2]
[365381902,1749636632614,-507.08,0.00018242,2]
[365381903,1749636632624,-1623.01832027,0.00018245,2]
[365381904,1749636632634,-385.0,0.00018299,2]
[365381905,1749636632643,-1623.01832027,0.00018348,2]
[365381906,1749636632653,-5451.87,0.00018356,2]
[365381907,1749636632662,-910.52,0.00018357,2]
[365381908,1749636632672,-302.3,0.00018406,2]
[365381909,1749636632682,-208.0,0.00018427,2]
[365381910,1749636632691,-1623.01832027,0.00018452,2]
[365381911,1749636632701,-666.0,0.00018493,2]
[365381912,1749636632710,-193.28304226,0.00018523,2]
[365381913,1749636632721,-614.437283,0.00018523,2]
[365381914,1749636632730,-383.71351485,0.00018523,2]
[365381915,1749636632740,-287.4244124,0.00018523,2]
[365381916,1749636632749,-23900.0,0.00018524,2]
[365381917,1749636632759,-296.0,0.00018555,2]
[365381918,1749636632769,-1623.01832027,0.00018555,2]
[365381919,1749636632779,-420.0,0.00018567,2]
[365381920,1749636632788,-500.0,0.0001863,2]
[365381921,1749636632797,-208.0,0.00018658,2]
[365381922,1749636632807,-1623.01832027,0.00018659,2]
[365381923,1749636632816,-1680.0,0.00018659,2]
[365381924,1749636632826,-204.0,0.00018685,3]
[365381925,1749636632835,-296.0,0.0001872,2]
[365381926,1749636632845,-200.0,0.00018723,2]
[365381927,1749636632854,-495.07,0.00018734,2]
[365381928,1749636632864,-508.25,0.00018734,2]
[365381929,1749636632874,-493.48,0.00018734,2]
[365381930,1749636632883,-1623.01832027,0.00018762,2]
[365381931,1749636632893,-1623.01832027,0.00018866,2]
[365381932,1749636632903,-12617.26620255,0.00018899,2]
[365381933,1749636632912,-500.0,0.00018925,2]
[365381934,1749636632923,-500.0,0.00018925,2]
[365381935,1749636632934,-500.0,0.00018925,2]
[365381936,1749636632943,-162.56620902,0.00018925,2]
[365381937,1749636632953,-500.0,0.00018925,2]
[365381938,1749636632963,-500.0,0.00018925,2]
[365381939,1749636632973,-500.0,0.00018925,2]
[365381940,1749636632982,-22.58689801,0.00018925,2]
[365381941,1749636633117,-186.45872896,0.00018925,2]
[365381942,1749636633128,-408.87347389,0.00018969,2]
[365381943,1749636633140,-1214.14484638,0.00018969,2]
[365381944,1749636633151,-558.81008304,0.00018978,2]
[365381945,1749636633160,-4574.8191,0.00018978,2]
[365381946,1749636633171,-936.98619214,0.00018992,2]
[365381947,1749636633181,-151.0,0.00018999,2]
[365381948,1749636633191,-151.0,0.00018999,2]
[365381949,1749636633201,-500.0,0.00018999,2]
[365381950,1749636633211,-521.36502392,0.00018999,2]
[365381951,1749636633220,-500.0,0.00018999,2]
[365381952,1749636633232,-411.36383579,0.00018999,2]
[365381953,1749636633241,-500.0,0.00018999,2]
[365381954,1749636633251,-500.0,0.00018999,2]
[365381955,1749636633261,-500.0,0.00018999,2]
[365381956,1749636633271,-500.0,0.00018999,2]
[365381957,1749636633281,-500.0,0.00018999,2]
[365381958,1749636633291,-500.0,0.00018999,2]
[365381959,1749636633301,-500.0,0.00018999,2]
[365381960,1749636633310,-192.35168393,0.00018999,2]
[365381961,1749636633320,-207.4,0.00018999,2]
[365381962,1749636633331,-989.0,0.0001901,2]
[365381963,1749636633341,-12617.26620255,0.0001901,2]
[365381964,1749636633351,-296.0,0.0001901,2]
[365381965,1749636633361,-181.0,0.00019055,2]
[365381966,1749636633371,-1623.01832027,0.00019072,2]
[365381967,1749636633381,-3655.47471198,0.00019078,2]
[365381973,1749636637475,-500.0,0.00017209,2]
[365381974,1749636637484,-404.78563712,0.00017209,2]
[365381976,1749636637743,-146.19222713,0.00017209,2]
[365381977,1749636637754,-500.0,0.00017209,2]
[365381978,1749636637764,-446.40777287,0.00017209,2]
[365381979,1749636637795,-53.59222713,0.00017209,2]
[365381980,1749636637805,-500.0,0.00017209,2]
[365381981,1749636637815,-500.0,0.00017209,2]
[365381982,1749636637825,-531.7058825,0.00017209,2]
[365381983,1749636637836,-500.0,0.00017209,2]
[365381984,1749636637845,-500.0,0.00017209,2]
[365381985,1749636637855,-500.0,0.00017209,2]
[365381986,1749636637864,-500.0,0.00017209,2]
[365381987,1749636637874,-279.36642312,0.00017209,2]
[365381988,1749636637886,-310.72037288,0.00017209,2]
[365381989,1749636637896,-285.01221363,0.00017209,2]
[365381990,1749636637906,-500.0,0.00017209,2]
[365381991,1749636637917,-500.0,0.00017209,2]
[365381992,1749636637928,-500.0,0.00017209,2]
[365381993,1749636637939,-500.0,0.00017209,2]
[365381994,1749636637949,-229.95836509,0.00017209,2]
[365381995,1749636637965,-270.04163491,0.00017209,2]
[365381996,1749636637977,-126.53645766,0.00017209,2]
[365381997,1749636637989,-373.46354234,0.00017209,2]
[365381998,1749636637998,-449.92564108,0.00017209,2]
[365381999,1749636638014,-50.07435892,0.00017209,2]
[365382000,1749636638024,-500.0,0.00017209,2]
[365382001,1749636638033,-444.98723943,0.00018523,2]
[365382002,1749636638042,-4594.91611744,0.00019078,2]
[365382003,1749636638058,-32825.19045721,0.00019078,2]
[365382004,1749636638067,-213.21839216,0.00019078,2]
[365382005,1749636638076,-816.57132805,0.00019078,2]
[365382006,1749636638087,-1000.0,0.00019078,2]
[365382007,1749636638096,-2500.0,0.00019078,2]
[365382008,1749636638106,-1013.0,0.000191,2]
[365382009,1749636638116,-208.0,0.00019108,2]
[365382010,1749636638125,-12617.26620255,0.00019121,2]
[365382011,1749636638135,-816.571328,0.00019134,2]
[365382012,1749636638144,-420.0,0.00019138,2]
[365382013,1749636638153,-41075.58128662,0.00019169,2]
[365382014,1749636638162,-1623.01832027,0.00019176,2]
[365382015,1749636638171,-500.0,0.00019178,2]
[365382017,1749636638181,-500.0,0.00019178,2]
[365382019,1749636638190,-500.0,0.00019178,2]
[365382021,1749636638200,-500.0,0.00019178,2]
[365382023,1749636638210,-500.0,0.00019178,2]
[365382025,1749636638219,-500.0,0.00019178,2]
[365382027,1749636638230,-500.0,0.00019178,2]
[365382029,1749636638239,-500.0,0.00019178,2]
[365382031,1749636638248,-500.0,0.00019178,2]
[365382033,1749636638258,-500.0,0.00019178,2]
[365382035,1749636638269,-500.0,0.00019178,2]
[365382037,1749636638279,-500.0,0.00019178,2]
[365382040,1749636638288,-500.0,0.00019178,2]
[365382042,1749636638298,-500.0,0.00019178,2]
[365382044,1749636638307,-500.0,0.00019178,2]
[365382046,1749636638316,-479.99626372,0.00019178,2]
[365382048,1749636638326,-500.0,0.00019178,2]
[365382050,1749636638336,-500.0,0.00019178,2]
[365382052,1749636638346,-500.0,0.00019178,2]
[365382055,1749636638355,-500.0,0.00019178,2]
[365382058,1749636638365,-500.0,0.00019178,2]
[365382060,1749636638375,-500.0,0.00019178,2]
[365382062,1749636638385,-500.0,0.00019178,2]
[365382064,1749636638395,-500.0,0.00019178,2]
[365382066,1749636638405,-500.0,0.00019178,2]
[365382068,1749636638414,-500.0,0.00019178,2]
[365382070,1749636638423,-500.0,0.00019178,2]
[365382072,1749636638433,-500.0,0.00019178,2]
[365382074,1749636638442,-500.0,0.00019178,2]